Workbook

Sheet تفاصيل المعادلة
A1: النوع | B1: النوع | C1: العرض | D1: العمق | E1: الارتفاع | F1: العدد | G1: كمية المساحة | H1: الكلفة | I1: الأجمالي
A2: جوانب | B2: AB | C2: 56 | D2: 0.56 | E2: 0.75 | F2: 2 | G2: =D2*E2*F2 -> 0.84 | H2: 16.33 | I2: =H2*G2 -> 13.7172
A3: القاعدة | B3: AB | C3: 0.964 | D3: 0.56 | E3: 0.75 | F3: 1 | G3: =C3*D3*F3 -> 0.53984 | H3: 16.33 | I3: =H3*G3 -> 8.8155872
A4: الرف | B4: AB | C4: 0.964 | D4: 0.54 | F4: 1 | G4: =C4*D4*F4 -> 0.52056 | H4: 16.33 | I4: 8.5007448
A5: المسطرة | B5: AB | C5: 0.964 | E5: 0.12 | F5: 2 | G5: =C5*E5*F5 -> 0.23136 | H5: 16.33 | I5: 3.7781088
G11: =SUM(G2:G10) -> 2.13176

Sheet البيانات
A1: ت | B1: قياس الكابينة | C1: MDF | D1: PVC | E1: ظهر | F1: مسند | G1: سعر MDF | H1: سعر PVC | I1: سعر الظهر | J1: سعر المسند | K1: مواد تشغيل | L1: الأجمالي | U1: =INDEX(MyFindData,SMALL(IF(ISNUMBER(SEARCH(FindText,MyFindData)),ROW(MyFindData),""),ROW())-ROW(INDEX(MyFindData,1,1))+1) -> 
A2: 1 | B2: AB 100*56*75 | C2: 2.1 | D2: 14.8 | E2: 0.63 | F2: 4 | G2: 1 | H2: 2 | I2: 3 | J2: 4 | K2: 5 | L2: 100
A3: 2 | B3: AB 90*55*75 | C3: 1.99 | D3: 13.92 | E3: 0.57 | F3: 7 | L3: 101
A4: 3 | B4: AB 80*55*75 | C4: 1.85 | D4: 13.12 | E4: 0.5 | F4: 6 | L4: 102
A5: 4 | B5: AB 75*55*75 | C5: 1.85 | D5: 13.12 | E5: 0.5 | F5: 4 | L5: 103
A6: 5 | B6: AB 70*55*75 | C6: 1.72 | D6: 12.32 | E6: 0.44 | F6: 4 | L6: 104
A7: 6 | B7: AB 60*55*75 | C7: 1.59 | D7: 11.52 | E7: 0.37 | F7: 7 | L7: 105
A8: 7 | B8: AB 50*55*75 | C8: 1.45 | D8: 10.72 | E8: 0.31 | F8: 4 | L8: 106
A9: 8 | B9: AB 45*55*75 | C9: 1.39 | D9: 10.32 | E9: 0.27 | F9: 7 | L9: 107
A10: 9 | B10: AB 40*55*75 | C10: 1.25 | D10: 9.92 | E10: 0.24 | F10: 4 | L10: 108
A11: 10 | B11: AB 35*55*75 | C11: 1.22 | D11: 9.52 | E11: 0.22 | F11: 4 | L11: 109
A12: 11 | B12: AB 30*55*75 | C12: 1.19 | D12: 9.12 | E12: 0.21 | F12: 4 | L12: 110
A13: 12 | B13: AB 25*55*75 | F13: 5 | L13: 111
A14: 13 | B14: AB 20*55*75 | C14: 1.05 | D14: 8.32 | E14: 0.18 | F14: 4 | L14: 112
A15: 14 | B15: AB 15*55*75 | C15: 1 | D15: 8 | E15: 0.18 | F15: 5 | L15: 113
A16: 15 | B16: ASB 100*55*75 | C16: 1.78 | D16: 14.8 | E16: 0.63 | F16: 5 | L16: 114
A17: 16 | B17: ASB 90*55*75 | C17: 1.68 | D17: 13.92 | E17: 0.57 | F17: 51 | L17: 115
A18: 17 | B18: AOB 90*55*75 | C18: 1.88 | D18: 13.92 | E18: 0.57 | F18: 4
A19: 18 | B19: AOB 60*55*75 | C19: 1.52 | D19: 11.52 | E19: 0.37 | F19: 4
A20: 19 | B20: ABC 90*90*55*75 | C20: 3.3 | D20: 17 | E20: 1.28 | F20: 5
A21: 20 | B21: ABB110*55*75 | C21: 2.63 | D21: 19.2 | E21: 0.79 | F21: 4
A22: 21 | B22: ABB 105*55*75 | C22: 2.19 | D22: 16 | E22: 0.66 | F22: 4
A23: 22 | B23: ABB 100*55*75 | F23: 4
A24: 23 | B24: ABM 40*55*75 | C24: 1.22 | D24: 9.52 | E24: 0.22
A25: 24 | B25: ATBC 90*90*56*75
A26: 25 | B26: AW 100*33*75 | C26: 1.38 | D26: 11.2 | E26: 0.71 | F26: 4
A27: 26 | B27: AW 90*33*75 | C27: 1.28 | D27: 10.6 | E27: 0.64 | F27: 5
A28: 27 | B28: AW 80*33*75 | C28: 1.19 | D28: 10.04 | E28: 0.56 | F28: 5
A29: 28 | B29: AW 75*33*75 | C29: 1.19 | D29: 10.04 | E29: 0.56 | F29: 4
A30: 29 | B30: AW 70*33*75 | C30: 1.09 | D30: 9.42 | E30: 0.49 | F30: 4
A31: 30 | B31: AW 60*33*75 | C31: 1 | D31: 8.8 | E31: 0.42 | F31: 4
A32: 31 | B32: AW 50*33*75 | C32: 0.91 | D32: 8.2 | E32: 0.35 | F32: 5
A33: 32 | B33: AW 45*33*75 | C33: 0.86 | D33: 7.92 | E33: 0.31 | F33: 4
A34: 33 | B34: AW 40*33*75 | C34: 0.82 | D34: 7.6 | E34: 0.27 | F34: 14
A35: 34 | B35: AW 35*33*75 | C35: 0.77 | D35: 7.3 | E35: 0.24 | F35: 6
A36: 35 | B36: AW 30*33*75 | C36: 0.72 | D36: 7 | E36: 0.2 | F36: 4
A37: 36 | B37: AW 25*33*75 | C37: 0.72 | D37: 7 | E37: 0.2 | F37: 4
A38: 37 | B38: AW 20*33*75 | C38: 0.63 | D38: 6.4 | E38: 0.13 | F38: 4
A39: 38 | B39: ABW 75*33*75 | C39: 1.14 | D39: 9.8 | E39: 0.53 | F39: 4
A40: 39 | B40: AWC 60*60*33*75 | C40: 1.59 | D40: 12.28 | E40: 0.84 | F40: 5
A41: 40 | B41: ATWC 60*60*33*75 | C41: 1.59 | D41: 15.6 | E41: 0.84 | F41: 5
A42: 41 | B42: AWL42 40*42*75
A43: 42 | B43: AWL42 45*42*75
A44: 43 | B44: AWL42 50*42*75
A45: 44 | B45: AWL42 60*42*75 | C45: 1.09 | D45: 9.42 | E45: 0.49
A46: 45 | B46: AWL42 75*42*75
A47: 46 | B47: AWL42 80*42*75
A48: 47 | B48: AWL42 90*42*75
A49: 48 | B49: ABW 75*42*75
A50: 49 | B50: AW 100*33*90
A51: 50 | B51: AW 90*33*90 | C51: 1.63 | D51: 13.68 | E51: 0.77 | F51: 8
A52: 51 | B52: AW 80*33*90 | C52: 1.51 | D52: 12.88 | E52: 0.68 | F52: 8
A53: 52 | B53: AW 75*33*90 | C53: 1.38 | D53: 12.08 | E53: 0.59 | F53: 8
A54: 53 | B54: AW 60*33*90 | C54: 1.26 | D54: 11.28 | E54: 0.51 | F54: 8
A55: 54 | B55: AW 50*33*90 | C55: 1.14 | D55: 10.48 | E55: 0.42 | F55: 8
A56: 55 | B56: AW 45*33*90 | C56: 1.08 | D56: 10.08 | E56: 0.37 | F56: 8
A57: 56 | B57: AW 40*33*90 | C57: 1.02 | D57: 9.68 | E57: 0.33 | F57: 8
A58: 57 | B58: AW 35*33*90
A59: 58 | B59: AW 30*33*90
A60: 59 | B60: ABW 75*33*90 | C60: 1.45 | D60: 12.4 | E60: 0.64 | F60: 8
A61: 60 | B61: AWC 60*60*33*90 | C61: 2.02 | D61: 15.6 | E61: 1.02 | F61: 10
A62: 61 | B62: ATWC 60*60*33*90 | C62: 2.03 | D62: 15.6 | E62: 1.02 | F62: 10
A63: 62 | B63: AWL42 100*42*90
A64: 63 | B64: AWL42 90*42*90
A65: 64 | B65: AWL42 80*42*90
A66: 65 | B66: AWL42 75*42*90
A67: 66 | B67: AWL42 70*42*90
A68: 67 | B68: AWL42 60*42*90 | C68: 1.79 | D68: 13.08 | E68: 0.51 | F68: 8
A69: 68 | B69: AWL42 50*42*90 | C69: 1.62 | D69: 12.28 | E69: 0.42 | F69: 8
A70: 69 | B70: AWL42 45*42*90 | C70: 1.53 | D70: 11.48 | E70: 0.37 | F70: 8
A71: 70 | B71: AWL42 40*42*90
A72: 71 | B72: AWL42 35*42*90
A73: 72 | B73: AWL42 30*42*90
A74: 73 | B74: ABW 75*42*90
A75: 74 | B75: AW 100*33*110
A76: 75 | B76: AW 90*33*110 | C76: 1.88 | D76: 15.54 | E76: 0.95
A77: 76 | B77: AW 80*33*110 | C77: 1.75 | D77: 14.73 | E77: 0.84
A78: 77 | B78: AW 75*33*110
A79: 78 | B79: AW 70*33*110
A80: 79 | B80: AW 60*33*110
A81: 80 | B81: AW 50*33*110 | C81: 1.33 | D81: 12 | E81: 0.52
A82: 81 | B82: AW 45*33*110 | C82: 1.26 | D82: 11.62 | E82: 0.46
A83: 82 | B83: AW 40*33*110
A84: 83 | B84: AW 35*33*110
A85: 84 | B85: ABW 75*33*110
A86: 85 | B86: AWC 60*60*33*110
A87: 86 | B87: ATWC 60*60*33*110 | C87: 2.33 | D87: 18 | E87: 1.22
A88: 87 | B88: AWL42 100*42*110
A89: 88 | B89: AWL42 90*42*110
A90: 89 | B90: AWL42 80*42*110
A91: 90 | B91: AWL42 75*42*110
A92: 91 | B92: AWL42 70*42*110
A93: 92 | B93: AWL42 60*42*110
A94: 93 | B94: AWL42 50*42*110
A95: 94 | B95: AWL42 50*42*110
A96: 95 | B96: AWL42 50*42*110
A97: 96 | B97: AWL42 35*42*110
A98: 97 | B98: AWL42 30*42*110
A99: 98 | B99: AWL42 75*42*110
A100: 99 | B100: AWT 60*33*135
A101: 100 | B101: AWT 50*33*135 | C101: 1.57 | D101: 14.6 | E101: 0.63 | F101: 12
A102: 101 | B102: AWT 45*33*135 | C102: 2.11 | D102: 15.52 | E102: 0.57 | F102: 12
A103: 102 | B103: AWT 60*42*135
A104: 103 | B104: AWT 50*42*135 | C104: 2.22 | D104: 16 | E104: 0.63 | F104: 12
A105: 104 | B105: AWT 45*42*135
A106: 105 | B106: AWT 60*33*150
A107: 106 | B107: AWT 50*33*150
A108: 107 | B108: AWT 45*33*150
A109: 108 | B109: AWT 60*42*150 | C109: 3 | D109: 17 | E109: 0.83
A110: 109 | B110: AWT 50*42*150
A111: 110 | B111: AWT 45*42*150
A112: 111 | B112: AW 100*33*60
A113: 112 | B113: AW 90*33*60 | C113: 1.19 | D113: 9.48 | E113: 0.51 | F113: 4
A114: 113 | B114: AW 80*33*60 | C114: 1.09 | D114: 8.88 | E114: 0.45 | F114: 4
A115: 114 | B115: AW75*33*60 | F115: 4
A116: 115 | B116: AW 70*33*60 | C116: 1 | D116: 8.44 | E116: 0.39 | F116: 5
A117: 116 | B117: AW60*33*60 | C117: 0.91 | D117: 8 | E117: 0.33 | F117: 4
A118: 117 | B118: AW 50*33*60 | C118: 0.81 | D118: 7.6 | E118: 0.27 | F118: 4
A119: 118 | B119: AW 45*33*60 | C119: 0.77 | F119: 4
A120: 119 | B120: AW40*33*60 | F120: 4
A121: 120 | B121: AW 35*33*60 | F121: 4
A122: 121 | B122: AW 30*33*60 | F122: 4
A123: 122 | B123: ABW 75*33*60 | F123: 4
A124: 123 | B124: AW 100*33*50 | C124: 1.19 | D124: 9.48 | E124: 0.51 | F124: 4
A125: 124 | B125: AW 90*33*50 | F125: 4
A126: 125 | B126: AW 80*33*50 | F126: 4
A127: 126 | B127: AW 75*33*50 | F127: 4
A128: 127 | B128: AW 70*33*50 | F128: 4
A129: 128 | B129: AW 60*33*50 | F129: 4
A130: 129 | B130: AW 50*33*50 | F130: 4
A131: 130 | B131: AW 45*33*50 | F131: 4
A132: 131 | B132: AW 40*33*50 | F132: 4
A133: 132 | B133: AW 35*33*50 | F133: 4
A134: 133 | B134: AW 30*33*50 | F134: 4
A135: 134 | B135: ABW 75*33*50 | F135: 4
A136: 135 | B136: ATWC 65*65*33*50
A137: 136 | B137: AWAR 100*33*35 | C137: 0.84 | D137: 6.92 | E137: 0.37 | F137: 1
A138: 137 | B138: AWAR 90*33*35
A139: 138 | B139: AWAR 80*33*35 | C139: 0.71 | D139: 6.12 | E139: 0.29
A140: 139 | B140: AWAR 70*33*35 | F140: 1
A141: 140 | B141: AWAR 60*33*35
A142: 141 | B142: AWAR 100*42*35
A143: 142 | B143: AWAR 90*42*35
A144: 143 | B144: AWAR80*42*35
A145: 144 | B145: AWAR 70*42*35
A146: 145 | B146: AWAR 60*42*35
A147: 146 | B147: AWAR 100*56*35
A148: 147 | B148: AWAR 90*56*35
A149: 148 | B149: AWAR 80*56*35
A150: 149 | B150: AWAR 70*56*35
A151: 150
A152: 151 | B152: A2D 90*45*20
A153: 152 | B153: A2D 80*45*20
A154: 153 | B154: A2D 70*45*20
A155: 154 | B155: A2D 60*45*20
A156: 155 | B156: A2D 50*45*20
A157: 156 | B157: A2D 45*45*20
A158: 157 | B158: A3D 90*45*20*15*15
A159: 158 | B159: A3D 80*45*20*15*15 | C159: 1.3 | D159: 17.28 | E159: 0.92 | F159: 12
A160: 159 | B160: A3D 70*45*20*15*15
A161: 160 | B161: A3D 60*45*20*15*15 | C161: 1.08 | D161: 14.88 | E161: 0.67 | F161: 12
A162: 161 | B162: A3D 50*45*20*15*15 | C162: 0.97 | D162: 13.68 | E162: 0.54 | F162: 12
A163: 162 | B163: A3D 45*45*20*15*15 | C163: 0.97 | D163: 13.68 | E163: 0.54 | F163: 12
A164: 163 | B164: A4D 90*45*15
A165: 164 | B165: A4D 80*45*15
A166: 165 | B166: A4D 70*45*15
A167: 166 | B167: A4D 60*45*15 | C167: 1.18 | D167: 18.08 | E167: 0.43 | F167: 16
A168: 167 | B168: A4D 50*45*15 | C168: 1.06 | D168: 16.48 | E168: 0.33 | F168: 16
A169: 168 | B169: A4D 45*45*15 | C169: 1 | D169: 15 | E169: 0.28 | F169: 16
A170: 169 | B170: AT 60*56*228 | C170: 4.69 | D170: 28 | E170: 1.31 | F170: 16
A171: 170 | B171: AT 50*56*200 | C171: 4.31 | D171: 26.6 | E171: 1.08 | F171: 16
A172: 171 | B172: AT 45*56*228 | C172: 4.12 | D172: 25.92 | E172: 0.97 | F172: 16
A173: 172 | B173: AT 40*56*228
A174: 173 | B174: AT 60*56*212 | C174: 4 | D174: 25 | E174: 1.5
A175: 174 | B175: AT 50*56*212
A176: 175 | B176: AT 45*56*212
A177: 176 | B177: AT 40*56*212
A178: 177 | B178: AT 100*56*175
A179: 178 | B179: AT 90*56*175
A180: 179 | B180: AT 80*56*175
A181: 180 | B181: AT 70*56*175
A182: 181 | B182: AT 60*56*175
A183: 182 | B183: AT 50*56*175
A184: 183 | B184: AT 45*56*175
A185: 184 | B185: AT 40*56*175
A186: 185 | B186: ABT 100*56*135
A187: 186 | B187: ABT 90*56*135 | C187: 3.42 | D187: 18.76 | E187: 1.17 | F187: 8
A188: 187 | B188: ABT 80*56*135
A189: 188 | B189: ABT 70*56*135
A190: 189 | B190: ABT 60*56*135 | C190: 2.75 | D190: 16 | E190: 0.77 | F190: 8
A191: 190 | B191: ABT 50*56*135 | C191: 2.53 | D191: 15.36 | E191: 0.64 | F191: 8
A192: 191 | B192: ABT 45*56*135 | C192: 2.42 | D192: 14.84 | E192: 0.57 | F192: 8
A193: 192 | B193: ABT 40*56*135
A194: 193 | B194: ABT 60*56*115 | C194: 2.52 | D194: 15.4 | E194: 0.56 | F194: 8
A195: 194 | B195: ABT 50*56*115 | C195: 2.3 | D195: 14.6 | E195: 0.54 | F195: 8
A196: 195 | B196: ABT 45*56*115 | C196: 2.19 | D196: 14.2 | E196: 0.48 | F196: 8
A197: 196 | B197: ABT 40*56*115
A198: 197 | B198: AW 40*33*37.5
A199: 198 | B199: ASB 120*56*75
A200: 199 | B200: AB 100 *70*75
... 7 more rows

Sheet التفاصيل
A1: نوع الكابينة | B1: مبلغ التكلفة | C1: مبلغ البيع | D1: صافي الربح | E1: رقم الفاتورة | F1: اسم الزبون | G1: الجهة | H1: الكود | I1: الملاحظات
A2: AB 100*56*75 | B2: =IFERROR(VLOOKUP($A2,البيانات!$B$2:$L$207,11,FALSE),"") -> 100 | D2: =IFERROR(C2-B2,"") -> -100
A3: AB 90*55*75 | B3: =IFERROR(VLOOKUP($A3,البيانات!$B$2:$L$207,11,FALSE),"") -> 101 | D3: =IFERROR(C3-B3,"") -> -101
A4: ASB 90*55*75 | B4: =IFERROR(VLOOKUP($A4,البيانات!$B$2:$L$207,11,FALSE),"") -> 115 | D4: -115
A5: AB 90*55*75 | B5: =IFERROR(VLOOKUP($A5,البيانات!$B$2:$L$207,11,FALSE),"") -> 101 | D5: -101
A6: AB 80*55*75 | B6: =IFERROR(VLOOKUP($A6,البيانات!$B$2:$L$207,11,FALSE),"") -> 102 | D6: -102
A7: AB 100*56*75 | B7: =IFERROR(VLOOKUP($A7,البيانات!$B$2:$L$207,11,FALSE),"") -> 100 | D7: -100
B8: =IFERROR(VLOOKUP($A8,البيانات!$B$2:$L$207,11,FALSE),"") -> 
B9: =IFERROR(VLOOKUP($A9,البيانات!$B$2:$L$207,11,FALSE),"") -> 
B10: =IFERROR(VLOOKUP($A10,البيانات!$B$2:$L$207,11,FALSE),"") -> 
B11: =IFERROR(VLOOKUP($A11,البيانات!$B$2:$L$207,11,FALSE),"") -> 
B12: =IFERROR(VLOOKUP($A12,البيانات!$B$2:$L$207,11,FALSE),"") -> 
B13: =IFERROR(VLOOKUP($A13,البيانات!$B$2:$L$207,11,FALSE),"") -> 
B14: =IFERROR(VLOOKUP($A14,البيانات!$B$2:$L$207,11,FALSE),"") -> 
B15: =IFERROR(VLOOKUP($A15,البيانات!$B$2:$L$207,11,FALSE),"") -> 
B16: =IFERROR(VLOOKUP($A16,البيانات!$B$2:$L$207,11,FALSE),"") -> 
B17: =IFERROR(VLOOKUP($A17,البيانات!$B$2:$L$207,11,FALSE),"") -> 
B18: =IFERROR(VLOOKUP($A18,البيانات!$B$2:$L$207,11,FALSE),"") -> 
B19: =IFERROR(VLOOKUP($A19,البيانات!$B$2:$L$207,11,FALSE),"") -> 
B20: =IFERROR(VLOOKUP($A20,البيانات!$B$2:$L$207,11,FALSE),"") -> 
B21: =IFERROR(VLOOKUP($A21,البيانات!$B$2:$L$207,11,FALSE),"") -> 
B22: =IFERROR(VLOOKUP($A22,البيانات!$B$2:$L$207,11,FALSE),"") -> 
B23: =IFERROR(VLOOKUP($A23,البيانات!$B$2:$L$207,11,FALSE),"") -> 
B24: =IFERROR(VLOOKUP($A24,البيانات!$B$2:$L$207,11,FALSE),"") -> 
B25: =IFERROR(VLOOKUP($A25,البيانات!$B$2:$L$207,11,FALSE),"") -> 
B26: =IFERROR(VLOOKUP($A26,البيانات!$B$2:$L$207,11,FALSE),"") -> 
B27: =IFERROR(VLOOKUP($A27,البيانات!$B$2:$L$207,11,FALSE),"") -> 
B28: =IFERROR(VLOOKUP($A28,البيانات!$B$2:$L$207,11,FALSE),"") -> 
B29: =IFERROR(VLOOKUP($A29,البيانات!$B$2:$L$207,11,FALSE),"") -> 
B30: =IFERROR(VLOOKUP($A30,البيانات!$B$2:$L$207,11,FALSE),"") -> 
B31: =IFERROR(VLOOKUP($A31,البيانات!$B$2:$L$207,11,FALSE),"") -> 
B32: =IFERROR(VLOOKUP($A32,البيانات!$B$2:$L$207,11,FALSE),"") -> 
B33: =IFERROR(VLOOKUP($A33,البيانات!$B$2:$L$207,11,FALSE),"") -> 
B34: =IFERROR(VLOOKUP($A34,البيانات!$B$2:$L$207,11,FALSE),"") -> 
B35: =IFERROR(VLOOKUP($A35,البيانات!$B$2:$L$207,11,FALSE),"") -> 
B36: =IFERROR(VLOOKUP($A36,البيانات!$B$2:$L$207,11,FALSE),"") -> 
B37: =IFERROR(VLOOKUP($A37,البيانات!$B$2:$L$207,11,FALSE),"") -> 
B38: =IFERROR(VLOOKUP($A38,البيانات!$B$2:$L$207,11,FALSE),"") -> 
B39: =IFERROR(VLOOKUP($A39,البيانات!$B$2:$L$207,11,FALSE),"") -> 
B40: =IFERROR(VLOOKUP($A40,البيانات!$B$2:$L$207,11,FALSE),"") -> 
B41: =IFERROR(VLOOKUP($A41,البيانات!$B$2:$L$207,11,FALSE),"") -> 
B42: =IFERROR(VLOOKUP($A42,البيانات!$B$2:$L$207,11,FALSE),"") -> 
B43: =IFERROR(VLOOKUP($A43,البيانات!$B$2:$L$207,11,FALSE),"") -> 
B44: =IFERROR(VLOOKUP($A44,البيانات!$B$2:$L$207,11,FALSE),"") -> 
B45: =IFERROR(VLOOKUP($A45,البيانات!$B$2:$L$207,11,FALSE),"") -> 
B46: =IFERROR(VLOOKUP($A46,البيانات!$B$2:$L$207,11,FALSE),"") -> 
B47: =IFERROR(VLOOKUP($A47,البيانات!$B$2:$L$207,11,FALSE),"") -> 
B48: =IFERROR(VLOOKUP($A48,البيانات!$B$2:$L$207,11,FALSE),"") -> 
B49: =IFERROR(VLOOKUP($A49,البيانات!$B$2:$L$207,11,FALSE),"") -> 
B50: =IFERROR(VLOOKUP($A50,البيانات!$B$2:$L$207,11,FALSE),"") -> 
B51: =IFERROR(VLOOKUP($A51,البيانات!$B$2:$L$207,11,FALSE),"") -> 
B52: =IFERROR(VLOOKUP($A52,البيانات!$B$2:$L$207,11,FALSE),"") -> 
B53: =IFERROR(VLOOKUP($A53,البيانات!$B$2:$L$207,11,FALSE),"") -> 
B54: =IFERROR(VLOOKUP($A54,البيانات!$B$2:$L$207,11,FALSE),"") -> 
B55: =IFERROR(VLOOKUP($A55,البيانات!$B$2:$L$207,11,FALSE),"") -> 
B56: =IFERROR(VLOOKUP($A56,البيانات!$B$2:$L$207,11,FALSE),"") -> 
B57: =IFERROR(VLOOKUP($A57,البيانات!$B$2:$L$207,11,FALSE),"") -> 
B58: =IFERROR(VLOOKUP($A58,البيانات!$B$2:$L$207,11,FALSE),"") -> 
B59: =IFERROR(VLOOKUP($A59,البيانات!$B$2:$L$207,11,FALSE),"") -> 
B60: =IFERROR(VLOOKUP($A60,البيانات!$B$2:$L$207,11,FALSE),"") -> 
B61: =IFERROR(VLOOKUP($A61,البيانات!$B$2:$L$207,11,FALSE),"") -> 
B62: =IFERROR(VLOOKUP($A62,البيانات!$B$2:$L$207,11,FALSE),"") -> 
B63: =IFERROR(VLOOKUP($A63,البيانات!$B$2:$L$207,11,FALSE),"") -> 
B64: =IFERROR(VLOOKUP($A64,البيانات!$B$2:$L$207,11,FALSE),"") -> 
B65: =IFERROR(VLOOKUP($A65,البيانات!$B$2:$L$207,11,FALSE),"") -> 
B66: =IFERROR(VLOOKUP($A66,البيانات!$B$2:$L$207,11,FALSE),"") -> 
B67: =IFERROR(VLOOKUP($A67,البيانات!$B$2:$L$207,11,FALSE),"") ->  | D67: =IFERROR(C67-B67,"") -> 
B68: =IFERROR(VLOOKUP($A68,البيانات!$B$2:$L$207,11,FALSE),"") -> 
B69: =IFERROR(VLOOKUP($A69,البيانات!$B$2:$L$207,11,FALSE),"") -> 
B70: =IFERROR(VLOOKUP($A70,البيانات!$B$2:$L$207,11,FALSE),"") -> 
B71: =IFERROR(VLOOKUP($A71,البيانات!$B$2:$L$207,11,FALSE),"") -> 
B72: =IFERROR(VLOOKUP($A72,البيانات!$B$2:$L$207,11,FALSE),"") -> 
B73: =IFERROR(VLOOKUP($A73,البيانات!$B$2:$L$207,11,FALSE),"") -> 
B74: =IFERROR(VLOOKUP($A74,البيانات!$B$2:$L$207,11,FALSE),"") -> 
B75: =IFERROR(VLOOKUP($A75,البيانات!$B$2:$L$207,11,FALSE),"") -> 
B76: =IFERROR(VLOOKUP($A76,البيانات!$B$2:$L$207,11,FALSE),"") -> 
B77: =IFERROR(VLOOKUP($A77,البيانات!$B$2:$L$207,11,FALSE),"") -> 
B78: =IFERROR(VLOOKUP($A78,البيانات!$B$2:$L$207,11,FALSE),"") -> 
B79: =IFERROR(VLOOKUP($A79,البيانات!$B$2:$L$207,11,FALSE),"") -> 
B80: =IFERROR(VLOOKUP($A80,البيانات!$B$2:$L$207,11,FALSE),"") -> 
B81: =IFERROR(VLOOKUP($A81,البيانات!$B$2:$L$207,11,FALSE),"") -> 
B82: =IFERROR(VLOOKUP($A82,البيانات!$B$2:$L$207,11,FALSE),"") -> 
B83: =IFERROR(VLOOKUP($A83,البيانات!$B$2:$L$207,11,FALSE),"") -> 
B84: =IFERROR(VLOOKUP($A84,البيانات!$B$2:$L$207,11,FALSE),"") -> 
B85: =IFERROR(VLOOKUP($A85,البيانات!$B$2:$L$207,11,FALSE),"") -> 
B86: =IFERROR(VLOOKUP($A86,البيانات!$B$2:$L$207,11,FALSE),"") -> 
B87: =IFERROR(VLOOKUP($A87,البيانات!$B$2:$L$207,11,FALSE),"") -> 
B88: =IFERROR(VLOOKUP($A88,البيانات!$B$2:$L$207,11,FALSE),"") -> 
B89: =IFERROR(VLOOKUP($A89,البيانات!$B$2:$L$207,11,FALSE),"") -> 
B90: =IFERROR(VLOOKUP($A90,البيانات!$B$2:$L$207,11,FALSE),"") -> 
B91: =IFERROR(VLOOKUP($A91,البيانات!$B$2:$L$207,11,FALSE),"") -> 
B92: =IFERROR(VLOOKUP($A92,البيانات!$B$2:$L$207,11,FALSE),"") -> 
B93: =IFERROR(VLOOKUP($A93,البيانات!$B$2:$L$207,11,FALSE),"") -> 
B94: =IFERROR(VLOOKUP($A94,البيانات!$B$2:$L$207,11,FALSE),"") -> 
B95: =IFERROR(VLOOKUP($A95,البيانات!$B$2:$L$207,11,FALSE),"") -> 
B96: =IFERROR(VLOOKUP($A96,البيانات!$B$2:$L$207,11,FALSE),"") -> 
B97: =IFERROR(VLOOKUP($A97,البيانات!$B$2:$L$207,11,FALSE),"") -> 
B98: =IFERROR(VLOOKUP($A98,البيانات!$B$2:$L$207,11,FALSE),"") -> 
B99: =IFERROR(VLOOKUP($A99,البيانات!$B$2:$L$207,11,FALSE),"") -> 
B100: =IFERROR(VLOOKUP($A100,البيانات!$B$2:$L$207,11,FALSE),"") -> 
B101: =IFERROR(VLOOKUP($A101,البيانات!$B$2:$L$207,11,FALSE),"") -> 
B102: =IFERROR(VLOOKUP($A102,البيانات!$B$2:$L$207,11,FALSE),"") -> 
B103: =IFERROR(VLOOKUP($A103,البيانات!$B$2:$L$207,11,FALSE),"") -> 
B104: =IFERROR(VLOOKUP($A104,البيانات!$B$2:$L$207,11,FALSE),"") -> 
B105: =IFERROR(VLOOKUP($A105,البيانات!$B$2:$L$207,11,FALSE),"") -> 
B106: =IFERROR(VLOOKUP($A106,البيانات!$B$2:$L$207,11,FALSE),"") -> 
B107: =IFERROR(VLOOKUP($A107,البيانات!$B$2:$L$207,11,FALSE),"") -> 
B108: =IFERROR(VLOOKUP($A108,البيانات!$B$2:$L$207,11,FALSE),"") -> 
B109: =IFERROR(VLOOKUP($A109,البيانات!$B$2:$L$207,11,FALSE),"") -> 
B110: =IFERROR(VLOOKUP($A110,البيانات!$B$2:$L$207,11,FALSE),"") -> 
B111: =IFERROR(VLOOKUP($A111,البيانات!$B$2:$L$207,11,FALSE),"") -> 
B112: =IFERROR(VLOOKUP($A112,البيانات!$B$2:$L$207,11,FALSE),"") -> 
B113: =IFERROR(VLOOKUP($A113,البيانات!$B$2:$L$207,11,FALSE),"") -> 
B114: =IFERROR(VLOOKUP($A114,البيانات!$B$2:$L$207,11,FALSE),"") -> 
B115: =IFERROR(VLOOKUP($A115,البيانات!$B$2:$L$207,11,FALSE),"") -> 
B116: =IFERROR(VLOOKUP($A116,البيانات!$B$2:$L$207,11,FALSE),"") -> 
B117: =IFERROR(VLOOKUP($A117,البيانات!$B$2:$L$207,11,FALSE),"") -> 
B118: =IFERROR(VLOOKUP($A118,البيانات!$B$2:$L$207,11,FALSE),"") -> 
B119: =IFERROR(VLOOKUP($A119,البيانات!$B$2:$L$207,11,FALSE),"") -> 
B120: =IFERROR(VLOOKUP($A120,البيانات!$B$2:$L$207,11,FALSE),"") -> 
B121: =IFERROR(VLOOKUP($A121,البيانات!$B$2:$L$207,11,FALSE),"") -> 
B122: =IFERROR(VLOOKUP($A122,البيانات!$B$2:$L$207,11,FALSE),"") -> 
B123: =IFERROR(VLOOKUP($A123,البيانات!$B$2:$L$207,11,FALSE),"") -> 
B124: =IFERROR(VLOOKUP($A124,البيانات!$B$2:$L$207,11,FALSE),"") -> 
B125: =IFERROR(VLOOKUP($A125,البيانات!$B$2:$L$207,11,FALSE),"") -> 
B126: =IFERROR(VLOOKUP($A126,البيانات!$B$2:$L$207,11,FALSE),"") -> 
B127: =IFERROR(VLOOKUP($A127,البيانات!$B$2:$L$207,11,FALSE),"") -> 
B128: =IFERROR(VLOOKUP($A128,البيانات!$B$2:$L$207,11,FALSE),"") -> 
B129: =IFERROR(VLOOKUP($A129,البيانات!$B$2:$L$207,11,FALSE),"") -> 
B130: =IFERROR(VLOOKUP($A130,البيانات!$B$2:$L$207,11,FALSE),"") -> 
B131: =IFERROR(VLOOKUP($A131,البيانات!$B$2:$L$207,11,FALSE),"") ->  | D131: =IFERROR(C131-B131,"") -> 
B132: =IFERROR(VLOOKUP($A132,البيانات!$B$2:$L$207,11,FALSE),"") -> 
B133: =IFERROR(VLOOKUP($A133,البيانات!$B$2:$L$207,11,FALSE),"") -> 
B134: =IFERROR(VLOOKUP($A134,البيانات!$B$2:$L$207,11,FALSE),"") -> 
B135: =IFERROR(VLOOKUP($A135,البيانات!$B$2:$L$207,11,FALSE),"") -> 
B136: =IFERROR(VLOOKUP($A136,البيانات!$B$2:$L$207,11,FALSE),"") -> 
B137: =IFERROR(VLOOKUP($A137,البيانات!$B$2:$L$207,11,FALSE),"") -> 
B138: =IFERROR(VLOOKUP($A138,البيانات!$B$2:$L$207,11,FALSE),"") -> 
B139: =IFERROR(VLOOKUP($A139,البيانات!$B$2:$L$207,11,FALSE),"") -> 
B140: =IFERROR(VLOOKUP($A140,البيانات!$B$2:$L$207,11,FALSE),"") -> 
B141: =IFERROR(VLOOKUP($A141,البيانات!$B$2:$L$207,11,FALSE),"") -> 
B142: =IFERROR(VLOOKUP($A142,البيانات!$B$2:$L$207,11,FALSE),"") -> 
B143: =IFERROR(VLOOKUP($A143,البيانات!$B$2:$L$207,11,FALSE),"") -> 
B144: =IFERROR(VLOOKUP($A144,البيانات!$B$2:$L$207,11,FALSE),"") -> 
B145: =IFERROR(VLOOKUP($A145,البيانات!$B$2:$L$207,11,FALSE),"") -> 
B146: =IFERROR(VLOOKUP($A146,البيانات!$B$2:$L$207,11,FALSE),"") -> 
B147: =IFERROR(VLOOKUP($A147,البيانات!$B$2:$L$207,11,FALSE),"") -> 
B148: =IFERROR(VLOOKUP($A148,البيانات!$B$2:$L$207,11,FALSE),"") -> 
B149: =IFERROR(VLOOKUP($A149,البيانات!$B$2:$L$207,11,FALSE),"") -> 
B150: =IFERROR(VLOOKUP($A150,البيانات!$B$2:$L$207,11,FALSE),"") -> 
B151: =IFERROR(VLOOKUP($A151,البيانات!$B$2:$L$207,11,FALSE),"") -> 
B152: =IFERROR(VLOOKUP($A152,البيانات!$B$2:$L$207,11,FALSE),"") -> 
B153: =IFERROR(VLOOKUP($A153,البيانات!$B$2:$L$207,11,FALSE),"") -> 
B154: =IFERROR(VLOOKUP($A154,البيانات!$B$2:$L$207,11,FALSE),"") -> 
B155: =IFERROR(VLOOKUP($A155,البيانات!$B$2:$L$207,11,FALSE),"") -> 
B156: =IFERROR(VLOOKUP($A156,البيانات!$B$2:$L$207,11,FALSE),"") -> 
B157: =IFERROR(VLOOKUP($A157,البيانات!$B$2:$L$207,11,FALSE),"") -> 
B158: =IFERROR(VLOOKUP($A158,البيانات!$B$2:$L$207,11,FALSE),"") -> 
B159: =IFERROR(VLOOKUP($A159,البيانات!$B$2:$L$207,11,FALSE),"") -> 
B160: =IFERROR(VLOOKUP($A160,البيانات!$B$2:$L$207,11,FALSE),"") -> 
B161: =IFERROR(VLOOKUP($A161,البيانات!$B$2:$L$207,11,FALSE),"") -> 
B162: =IFERROR(VLOOKUP($A162,البيانات!$B$2:$L$207,11,FALSE),"") -> 
B163: =IFERROR(VLOOKUP($A163,البيانات!$B$2:$L$207,11,FALSE),"") -> 
B164: =IFERROR(VLOOKUP($A164,البيانات!$B$2:$L$207,11,FALSE),"") -> 
B165: =IFERROR(VLOOKUP($A165,البيانات!$B$2:$L$207,11,FALSE),"") -> 
B166: =IFERROR(VLOOKUP($A166,البيانات!$B$2:$L$207,11,FALSE),"") -> 
B167: =IFERROR(VLOOKUP($A167,البيانات!$B$2:$L$207,11,FALSE),"") -> 
B168: =IFERROR(VLOOKUP($A168,البيانات!$B$2:$L$207,11,FALSE),"") -> 
B169: =IFERROR(VLOOKUP($A169,البيانات!$B$2:$L$207,11,FALSE),"") -> 
B170: =IFERROR(VLOOKUP($A170,البيانات!$B$2:$L$207,11,FALSE),"") -> 
B171: =IFERROR(VLOOKUP($A171,البيانات!$B$2:$L$207,11,FALSE),"") -> 
B172: =IFERROR(VLOOKUP($A172,البيانات!$B$2:$L$207,11,FALSE),"") -> 
B173: =IFERROR(VLOOKUP($A173,البيانات!$B$2:$L$207,11,FALSE),"") -> 
B174: =IFERROR(VLOOKUP($A174,البيانات!$B$2:$L$207,11,FALSE),"") -> 
B175: =IFERROR(VLOOKUP($A175,البيانات!$B$2:$L$207,11,FALSE),"") -> 
B176: =IFERROR(VLOOKUP($A176,البيانات!$B$2:$L$207,11,FALSE),"") -> 
B177: =IFERROR(VLOOKUP($A177,البيانات!$B$2:$L$207,11,FALSE),"") -> 
B178: =IFERROR(VLOOKUP($A178,البيانات!$B$2:$L$207,11,FALSE),"") -> 
B179: =IFERROR(VLOOKUP($A179,البيانات!$B$2:$L$207,11,FALSE),"") -> 
B180: =IFERROR(VLOOKUP($A180,البيانات!$B$2:$L$207,11,FALSE),"") -> 
B181: =IFERROR(VLOOKUP($A181,البيانات!$B$2:$L$207,11,FALSE),"") -> 
B182: =IFERROR(VLOOKUP($A182,البيانات!$B$2:$L$207,11,FALSE),"") -> 
B183: =IFERROR(VLOOKUP($A183,البيانات!$B$2:$L$207,11,FALSE),"") -> 
B184: =IFERROR(VLOOKUP($A184,البيانات!$B$2:$L$207,11,FALSE),"") -> 
B185: =IFERROR(VLOOKUP($A185,البيانات!$B$2:$L$207,11,FALSE),"") -> 
B186: =IFERROR(VLOOKUP($A186,البيانات!$B$2:$L$207,11,FALSE),"") -> 
B187: =IFERROR(VLOOKUP($A187,البيانات!$B$2:$L$207,11,FALSE),"") -> 
B188: =IFERROR(VLOOKUP($A188,البيانات!$B$2:$L$207,11,FALSE),"") -> 
B189: =IFERROR(VLOOKUP($A189,البيانات!$B$2:$L$207,11,FALSE),"") -> 
B190: =IFERROR(VLOOKUP($A190,البيانات!$B$2:$L$207,11,FALSE),"") -> 
B191: =IFERROR(VLOOKUP($A191,البيانات!$B$2:$L$207,11,FALSE),"") -> 
B192: =IFERROR(VLOOKUP($A192,البيانات!$B$2:$L$207,11,FALSE),"") -> 
B193: =IFERROR(VLOOKUP($A193,البيانات!$B$2:$L$207,11,FALSE),"") -> 
B194: =IFERROR(VLOOKUP($A194,البيانات!$B$2:$L$207,11,FALSE),"") -> 
B195: =IFERROR(VLOOKUP($A195,البيانات!$B$2:$L$207,11,FALSE),"") ->  | D195: =IFERROR(C195-B195,"") -> 
B196: =IFERROR(VLOOKUP($A196,البيانات!$B$2:$L$207,11,FALSE),"") -> 
B197: =IFERROR(VLOOKUP($A197,البيانات!$B$2:$L$207,11,FALSE),"") -> 
B198: =IFERROR(VLOOKUP($A198,البيانات!$B$2:$L$207,11,FALSE),"") -> 
B199: =IFERROR(VLOOKUP($A199,البيانات!$B$2:$L$207,11,FALSE),"") -> 
B200: =IFERROR(VLOOKUP($A200,البيانات!$B$2:$L$207,11,FALSE),"") -> 
... 1187 more rows
